bitfinex-derivatives/quotes_ETHF0:USTF0_20250114
["timestamp","ask_amount","ask_price","bid_price","bid_amount"]
[1736889420776,0.30972,3230.1,3230.0,4.1886]
[1736889420973,0.30972,3230.1,3230.0,3.6948]
[1736889421165,0.30972,3230.1,3230.0,3.2078]
[1736889421374,0.30972,3230.1,3229.1,4.79662]
[1736889421375,0.77441,3229.8,3229.1,4.79662]
[1736889421667,0.30981,3229.2,3229.1,3.51762]
[1736889421872,0.30981,3229.2,3229.1,44.0078]
[1736889422676,5.76997309,3229.7,3229.1,44.0078]
[1736889422873,0.30981,3229.2,3229.1,44.0078]
[1736889424077,3.88480481,3229.2,3229.1,44.0078]
[1736889424774,3.88480481,3229.2,3229.1,40.8]
[1736889427070,0.30978,3229.5,3229.1,41.10982]
[1736889427271,0.30978,3229.5,3229.3,0.3098]
[1736889427471,0.30979,3229.4,3229.2,1.2936]
[1736889427675,0.30979,3229.4,3229.3,0.3098]
[1736889427878,0.9917,3229.7,3229.2,0.9838]
[1736889428378,0.30979,3229.5,3229.3,0.30979]
[1736889429376,0.9917,3229.7,3229.3,0.30979]
[1736889429583,0.9917,3229.7,3229.2,4.5014]
[1736889429784,0.3098,3229.3,3229.2,4.5014]
[1736889430582,0.3098,3229.4,3229.2,4.1916]
[1736889430780,0.30979,3229.5,3229.3,0.3098]
[1736889430982,0.30979,3229.4,3229.3,0.3098]
[1736889431177,0.30979,3229.4,3229.2,4.1916]
[1736889431483,0.30979,3229.4,3229.2,4.5014]
[1736889432181,0.47359064,3230.2,3229.2,5.4696]
[1736889432386,15.38035374,3230.7,3229.8,3.2078]
[1736889432387,0.9509,3230.5,3229.8,3.2078]
[1736889432590,12.17255374,3230.7,3230.3,3.2078]
[1736889432884,12.17255374,3230.7,3230.4,40.8]
[1736889433075,8.30689629,3230.7,3230.6,0.30967]
[1736889433281,3.2078,3231.7,3230.6,0.30967]
[1736889433282,3.7057,3231.7,3230.6,0.30967]
[1736889433477,12.64228653,3231.7,3231.0,3.2078]
[1736889433781,0.30959,3231.5,3231.2,0.30961]
[1736889433987,0.3096,3231.4,3231.2,0.30961]
[1736889434281,3.43603181,3231.4,3231.2,0.30961]
[1736889434482,0.3096,3231.4,3231.1,41.10962]
[1736889435283,0.30961,3231.3,3231.1,41.10962]
[1736889435986,0.30961,3231.3,3231.1,40.8]
[1736889436386,3.44134401,3231.6,3231.1,40.8]
[1736889436387,0.30962,3231.2,3231.1,40.8]
[1736889437982,0.30962,3231.2,3231.0,3.2078]
[1736889437983,0.30963,3231.1,3231.0,3.2078]
[1736889438192,0.30966,3230.8,3230.5,3.51748]
[1736889438482,0.30967,3230.7,3230.5,3.2078]
[1736889438690,0.30967,3230.6,3230.5,3.2078]
[1736889439579,3.58051886,3230.6,3230.5,3.2078]
[1736889440285,0.77423,3230.5,3229.9,3.2078]
[1736889440488,0.30973,3230.0,3229.9,3.2078]
[1736889440875,0.30972,3230.1,3229.9,3.2078]
[1736889441586,0.30973,3230.0,3229.9,3.2078]
[1736889441790,3.61001779,3230.0,3229.9,3.2078]
[1736889442089,3.30028779,3230.2,3229.9,3.2078]
[1736889442290,0.30972,3230.1,3229.9,3.51754]
[1736889442584,3.32998222,3230.2,3229.9,3.2078]
[1736889442788,3.32998222,3230.2,3230.1,0.30972]
[1736889442986,0.4598,3230.9,3230.0,0.9282]
[1736889443182,0.4598,3230.9,3230.3,3.2078]
[1736889443377,0.30969,3230.5,3230.4,40.8]
[1736889446688,4.01524876,3230.9,3230.4,40.8]
[1736889446880,0.4598,3230.9,3230.4,40.8]
[1736889447081,0.77393,3231.7,3230.7,3.2078]
[1736889447284,0.30959,3231.5,3231.3,0.3096]
[1736889447980,0.4747,3231.6,3231.1,3.2078]
[1736889448287,3.5377246,3231.5,3231.3,0.3096]
[1736889448480,0.3096,3231.4,3231.2,0.30961]
[1736889448689,0.3096,3231.4,3231.3,0.30961]
[1736889448890,0.3096,3231.4,3231.3,41.10961]
[1736889449398,0.3096,3231.4,3231.3,40.8]
[1736889450893,3.5377246,3231.5,3231.4,0.3096]
[1736889451084,0.3096,3231.4,3231.3,41.1096]
[1736889451787,0.30961,3231.3,3231.2,0.30961]
[1736889452292,0.30961,3231.3,3231.2,41.10961]
[1736889452492,0.30962,3231.2,3231.1,3.2078]
[1736889460591,3.2281346,3231.5,3231.1,3.2078]
[1736889460798,0.30957,3231.7,3231.6,0.30957]
[1736889461096,0.30958,3231.6,3231.5,0.30958]
[1736889461489,0.30958,3231.6,3231.5,41.10958]
[1736889463793,0.30958,3231.6,3231.5,40.8]
[1736889464697,0.4581,3231.9,3231.5,40.8]
[1736889464889,0.30956,3231.8,3231.7,0.30957]
[1736889465092,0.4581,3231.9,3231.6,0.30957]
[1736889465093,0.30957,3231.7,3231.6,0.30957]
[1736889465592,0.30957,3231.8,3231.7,0.30957]
[1736889465794,0.30957,3231.8,3231.7,0.30705374]
[1736889467399,0.76766,3231.9,3231.8,0.30956]
[1736889467603,0.30953,3232.1,3232.0,0.30953]
[1736889467795,0.4607,3232.2,3231.8,0.9294]
[1736889468001,0.4607,3232.2,3232.1,0.30953]
[1736889468201,0.77022,3232.2,3232.1,0.30953]
[1736889468703,0.4607,3232.2,3232.0,3.2078]
[1736889469002,0.30953,3232.1,3232.0,3.2078]
[1736889469501,3.72680405,3232.1,3232.0,3.2078]
[1736889469801,0.30958,3231.6,3231.5,44.31738]
[1736889470095,0.30957,3231.7,3231.6,0.30957]
[1736889470293,0.30957,3231.8,3231.5,44.0078]
[1736889470494,0.30957,3231.8,3231.7,0.30957]
[1736889470890,3.41727405,3232.1,3231.5,3.2078]
[1736889471092,0.30958,3231.6,3231.5,3.2078]
[1736889471297,3.41727405,3232.1,3231.5,44.0078]
[1736889471511,0.30957,3231.7,3231.5,44.31738]
[1736889471899,0.30958,3231.6,3231.5,44.31738]
[1736889472197,0.30958,3231.6,3231.5,44.0078]
[1736889474202,0.4607,3232.2,3231.5,44.0078]
[1736889474401,0.30956,3231.9,3231.7,0.30956]
[1736889474595,3.76092646,3231.9,3231.7,0.30956]
[1736889474801,3.76092646,3231.9,3231.8,0.30956]
[1736889474802,0.30956,3231.9,3231.8,0.30956]
[1736889475209,0.30953,3232.1,3231.9,0.30954]
[1736889475404,0.30954,3232.0,3231.9,3.51734]
[1736889475599,0.4607,3232.2,3232.0,0.30954]
[1736889475600,3.36281681,3232.1,3232.0,0.30954]
[1736889475803,0.77023,3232.2,3232.0,0.30954]
[1736889476105,0.77023,3232.2,3231.9,3.51735]
[1736889476106,0.30954,3232.0,3231.9,3.51735]
[1736889476314,0.30954,3232.0,3231.9,3.2078]
[1736889482604,0.30955,3231.9,3231.8,0.30956]
[1736889482799,0.4607,3232.2,3231.5,44.0078]
[1736889483007,0.30958,3231.6,3231.5,44.0078]
[1736889483203,0.30958,3231.6,3231.5,3.2078]
[1736889483403,3.7133573,3231.6,3231.5,3.2078]
[1736889483713,0.30958,3231.6,3231.5,3.2078]
[1736889484615,0.30957,3231.7,3231.6,0.30958]
[1736889484911,0.30957,3231.7,3231.6,41.10958]
[1736889486207,0.30957,3231.7,3231.6,40.8]
[1736889487415,0.30957,3231.7,3231.6,41.10958]
[1736889487912,1.23451,3232.2,3231.6,40.8]
[1736889487913,0.77383,3232.1,3231.6,40.8]
[1736889488109,0.30957,3231.7,3231.6,41.10957]
[1736889489214,3.35512162,3232.1,3231.6,40.8]
[1736889489417,3.66466162,3232.1,3232.0,0.30954]
[1736889489618,0.30954,3232.0,3231.9,0.30954]
[1736889489920,3.66466162,3232.1,3232.0,0.30954]
[1736889490612,0.4607,3232.2,3231.6,0.77394]
[1736889490919,0.77023,3232.2,3232.1,0.30953]
[1736889491507,0.4607,3232.2,3232.1,0.30953]
[1736889491818,0.30953,3232.2,3232.1,0.30952]
[1736889493119,0.30953,3232.2,3232.0,44.0078]
[1736889493120,0.9342,3232.3,3232.0,44.0078]
[1736889493317,0.77951,3232.3,3232.2,0.30952]
[1736889493712,0.30951,3232.3,3232.2,0.30952]
[1736889494330,0.9578,3232.7,3232.4,0.3095]
[1736889494331,0.30949,3232.5,3232.4,0.3095]
[1736889494525,0.3095,3232.4,3232.3,0.30951]
[1736889496328,0.9489,3232.7,3232.0,44.31734]
[1736889496329,0.30953,3232.1,3232.0,44.31734]
[1736889496529,0.30953,3232.2,3232.1,0.30953]
[1736889498630,1.4102,3232.7,3232.0,44.0078]
[1736889498934,0.30951,3232.4,3232.3,0.30951]
[1736889501032,0.30951,3232.3,3232.2,0.30951]
[1736889502433,1.4102,3232.7,3232.0,44.0078]
[1736889502736,0.30953,3232.1,3232.0,44.31733]
[1736889503335,0.30953,3232.1,3232.0,44.0078]
[1736889505530,0.30953,3232.1,3232.0,3.2078]
[1736889505730,0.30958,3231.6,3231.5,3.2078]
[1736889506135,0.30958,3231.6,3231.5,44.0078]
[1736889507640,2.13354154,3231.6,3231.5,44.31739]
[1736889507842,0.30951,3232.4,3232.2,0.30952]
[1736889508137,1.4134,3232.5,3232.4,0.3095]
[1736889508338,0.9187,3232.5,3232.4,0.3095]
[1736889508527,0.9187,3232.5,3232.2,3.2078]
[1736889508934,0.9187,3232.5,3232.2,3.51732]
[1736889509134,0.76401,3232.4,3232.2,3.51732]
[1736889509330,0.76401,3232.4,3232.3,41.10951]
[1736889509536,0.4545,3232.4,3232.3,41.10951]
[1736889510349,1.2282,3232.5,3232.4,0.3095]
[1736889511440,0.3095,3232.4,3232.3,41.10951]
[1736889512537,0.3095,3232.4,3232.3,40.8]
[1736889512732,0.30951,3232.3,3232.2,3.2078]
[1736889512932,0.30951,3232.3,3231.5,0.30958]
[1736889512933,0.30959,3231.6,3231.5,0.30958]
[1736889513341,0.30958,3231.7,3231.6,0.30958]
[1736889513741,4.38816015,3231.9,3231.5,40.8]
[1736889513948,0.30958,3231.6,3231.5,41.10958]
[1736889515942,0.30956,3231.8,3231.6,0.30957]
[1736889516243,0.9008,3231.9,3231.6,0.30957]
[1736889516440,3.63788833,3231.7,3231.5,41.10958]
[1736889516740,0.30958,3231.7,3231.5,41.10958]
[1736889517633,0.45994014,3232.6,3231.5,41.10958]
[1736889517634,3.2078,3232.7,3231.5,40.8]
[1736889517845,0.4803,3232.6,3232.5,0.30949]
[1736889518938,0.77358,3233.2,3232.5,0.30949]
[1736889518939,4.75464,3233.9,3232.5,3.98154]
[1736889519143,0.4803,3233.4,3233.0,3.2078]
[1736889519439,0.30943,3233.1,3233.0,3.2078]
[1736889519844,3.30474626,3233.4,3233.1,0.30943]
[1736889520046,0.9299,3233.8,3233.2,40.8]
[1736889520252,0.3094,3233.5,3233.4,3.2078]
[1736889520937,0.30942,3233.3,3233.2,40.8]
[1736889521140,6.58422538,3233.5,3232.8,3.2078]
[1736889521345,0.30945,3232.9,3232.8,0.30946]
[1736889521838,0.30945,3232.9,3232.8,40.8]
[1736889522849,0.9544,3233.1,3232.4,3.2078]
[1736889523041,0.30948,3232.7,3232.4,3.2078]
[1736889523341,0.30948,3232.7,3232.5,40.8]
[1736889523545,0.30948,3232.7,3232.5,41.10949]
[1736889523745,0.30948,3232.6,3232.5,41.10949]
[1736889523950,0.30948,3232.7,3232.6,0.30948]
[1736889524350,3.33599975,3233.0,3232.5,40.8]
[1736889524549,0.30948,3232.6,3232.5,41.10949]
[1736889526650,0.30948,3232.6,3232.5,40.8]
[1736889528147,0.30945,3232.9,3232.8,0.30946]
[1736889528450,0.30945,3232.9,3232.5,41.2498]
[1736889528451,0.76515,3233.0,3232.9,0.30945]
[1736889528952,4.24247915,3233.0,3232.8,0.30946]
[1736889530055,4.24247915,3233.0,3232.9,0.30945]
[1736889530255,3.93302915,3233.0,3232.6,0.4779]
[1736889530557,0.30946,3232.9,3232.8,3.51726]
[1736889531048,0.30946,3232.9,3232.8,3.2078]
[1736889531354,0.30948,3232.6,3232.5,40.8]
[1736889531657,0.30948,3232.6,3232.5,41.10949]
[1736889531953,0.30948,3232.6,3232.5,40.8]
[1736889533047,3.80439098,3232.6,3232.5,40.8]
[1736889536353,0.30946,3232.9,3232.5,41.10949]
[1736889536561,0.30948,3232.7,3232.6,0.30948]
[1736889538156,3.50156395,3232.9,3232.5,41.2594]
[1736889538356,3.81102395,3232.9,3232.8,0.30946]
[1736889538558,3.81102395,3232.9,3232.6,0.4849]
[1736889538559,0.30947,3232.8,3232.7,0.30947]
[1736889540161,0.30947,3232.7,3232.6,0.4849]
[1736889540457,0.30948,3232.6,3232.5,40.8]
[1736889541555,0.30953,3232.1,3232.0,3.2078]
[1736889541755,0.30953,3232.2,3232.1,0.30953]
[1736889542154,0.30953,3232.2,3232.1,41.10953]
[1736889544261,3.62693014,3232.2,3232.1,40.8]
[1736889544450,3.31740014,3232.2,3232.0,3.2078]
[1736889544656,0.30953,3232.1,3232.0,3.2078]
[1736889545156,3.82148208,3232.1,3232.0,3.2078]
[1736889545360,3.51195208,3232.1,3231.8,40.8]
[1736889545558,0.30955,3231.9,3231.8,40.8]
[1736889547266,0.79181,3232.4,3232.2,0.30951]
[1736889547462,0.79181,3232.4,3232.3,0.30951]
[1736889547665,0.4823,3232.4,3232.3,0.30951]
[1736889547967,0.30951,3232.4,3232.3,0.30951]
[1736889548168,0.30951,3232.4,3232.3,41.10951]
[1736889548968,0.30951,3232.4,3232.3,40.8]
[1736889549167,0.30951,3232.4,3232.3,41.10951]
[1736889550056,0.4927,3232.6,3232.3,41.10951]
[1736889550288,0.482,3232.9,3232.3,44.0078]
[1736889550462,1.54691,3233.7,3232.8,3.2078]
[1736889550463,0.4654,3233.3,3232.8,3.2078]
[1736889550662,0.4654,3233.3,3232.9,0.30945]
[1736889550860,0.30944,3233.1,3232.9,0.79995]
[1736889551363,3.48105226,3233.2,3232.9,0.79995]
[1736889551566,0.30944,3233.0,3232.9,0.79995]
[1736889551771,0.30944,3233.1,3232.9,0.79995]
[1736889551970,0.30944,3233.0,3232.9,0.4905]
[1736889552271,0.30945,3232.9,3232.8,3.51726]
[1736889552467,3.48105226,3233.2,3232.4,3.2078]
[1736889552667,0.30949,3232.6,3232.4,3.5173]
[1736889553566,0.4775,3232.8,3232.4,3.5173]
[1736889553771,0.4654,3233.3,3232.9,0.30945]
[1736889554067,0.30944,3233.1,3233.0,3.2078]
[1736889554274,0.30943,3233.2,3233.1,0.30943]
[1736889554570,0.4654,3233.3,3233.0,3.2078]
[1736889554571,0.30943,3233.1,3233.0,3.2078]
[1736889555073,0.30943,3233.1,3233.0,44.0078]
[1736889555265,0.30943,3233.1,3233.0,44.31724]
[1736889555469,0.30943,3233.1,3233.0,44.0078]
[1736889555674,0.77482,3233.3,3233.1,0.30943]
[1736889555873,0.78691,3233.4,3233.2,0.30942]
[1736889556376,3.5172,3233.5,3233.3,0.30942]
[1736889556678,3.45944491,3233.4,3233.2,0.76442]
[1736889557172,0.30942,3233.3,3233.2,0.76442]
[1736889558074,3.45944491,3233.4,3233.2,0.455]
[1736889558281,3.45944491,3233.4,3233.3,0.30942]
[1736889558468,3.45944491,3233.4,3233.2,0.455]
[1736889558668,3.45944491,3233.4,3233.3,0.30942]
[1736889559073,0.4598,3233.7,3233.2,0.455]
[1736889559377,0.30939,3233.6,3233.5,0.30939]
[1736889559675,0.30939,3233.6,3233.4,3.2078]
[1736889559873,0.3094,3233.5,3233.4,3.2078]
[1736889562978,0.30942,3233.3,3233.1,0.76483]
[1736889564070,0.30942,3233.3,3233.2,0.30942]
[1736889564277,0.30942,3233.3,3233.1,0.76483]
[1736889564679,0.30942,3233.3,3233.1,0.4554]
[1736889564976,0.76918,3233.7,3233.5,0.3094]
[1736889565284,0.4598,3233.7,3233.1,1.69378]
[1736889565479,0.76918,3233.7,3233.5,0.30939]
[1736889565680,0.76918,3233.7,3233.1,1.69378]
[1736889565681,0.76918,3233.7,3233.2,1.083]
[1736889565875,0.4598,3233.7,3233.1,0.9202]
[1736889566076,0.3094,3233.5,3233.3,0.30941]
[1736889566580,0.30941,3233.4,3233.2,0.30942]
[1736889567279,0.30942,3233.3,3233.2,0.30942]
[1736889567981,0.30943,3233.2,3233.1,0.30943]
[1736889568180,0.30943,3233.1,3233.0,44.0078]
[1736889568376,0.78803,3233.1,3233.0,44.0078]
[1736889569378,0.4506,3233.3,3233.0,44.0078]
[1736889569578,0.4506,3233.3,3233.2,0.30943]
[1736889570277,1.73682,3233.9,3233.0,44.0078]
[1736889570479,0.3094,3233.5,3233.4,3.2078]
[1736889571073,0.30942,3233.3,3233.2,0.30943]
[1736889572185,0.77345,3233.7,3233.0,44.0078]
[1736889572388,0.77347,3233.6,3233.1,0.30943]
[1736889572581,0.30942,3233.3,3233.0,44.0078]
[1736889572883,0.30942,3233.3,3233.2,0.30943]
[1736889573280,3.22053129,3233.6,3233.0,44.0078]
[1736889573483,3.22053129,3233.6,3233.0,44.31724]
[1736889573784,3.22053129,3233.6,3233.0,44.0078]
[1736889573986,3.22053129,3233.6,3233.3,0.30941]
[1736889574185,0.30941,3233.5,3233.0,44.0078]
[1736889574389,0.30941,3233.5,3233.0,44.78141]
[1736889574594,0.30941,3233.5,3233.3,0.30941]
[1736889575188,0.30941,3233.4,3233.3,0.30941]
[1736889575581,3.22053129,3233.6,3233.2,0.30942]
[1736889575786,3.22053129,3233.6,3233.0,44.0078]
[1736889575787,0.30941,3233.4,3233.3,0.30941]
[1736889576083,0.30941,3233.4,3233.0,44.0078]
[1736889576291,0.7735,3233.5,3233.0,44.0078]
[1736889576486,1.69342,3233.3,3233.2,0.30943]
[1736889577082,0.9329,3233.3,3233.2,0.30943]
[1736889577288,1.24232,3233.3,3233.2,0.30943]
[1736889577483,0.9329,3233.3,3233.0,44.0078]
[1736889577685,0.30943,3233.2,3233.1,0.30943]
[1736889578092,1.24232,3233.3,3233.1,0.30943]
[1736889580486,0.9329,3233.3,3233.1,0.30943]
[1736889580693,0.30943,3233.2,3233.1,0.30943]
[1736889581189,0.9329,3233.3,3233.0,44.0078]
[1736889581393,0.30943,3233.1,3233.0,44.31724]
[1736889584898,0.30943,3233.2,3233.1,0.30943]
[1736889585099,1.24232,3233.3,3233.2,0.30943]
[1736889585296,0.9329,3233.3,3233.2,0.30943]
[1736889585592,1.24232,3233.3,3233.2,0.30943]
[1736889588096,0.9329,3233.3,3233.2,0.30943]
[1736889589891,0.3094,3233.5,3233.0,44.0078]
[1736889590198,0.3094,3233.5,3233.4,0.30941]
[1736889590791,3.75678125,3233.6,3233.1,0.4655]
[1736889591096,0.30941,3233.4,3233.3,0.30941]
[1736889592498,3.75678125,3233.6,3233.0,44.0078]
[1736889592796,0.30943,3233.2,3233.1,0.30943]
[1736889593589,0.4629,3233.3,3233.0,44.0078]
[1736889593794,0.30943,3233.1,3233.0,44.31724]
[1736889598201,0.30943,3233.1,3233.0,44.0078]
[1736889598701,0.30943,3233.1,3233.0,44.31724]
[1736889598901,0.30943,3233.1,3233.0,44.0078]
[1736889599802,0.30943,3233.1,3233.0,44.31724]
[1736889600299,0.30947,3232.7,3232.6,3.2078]
[1736889600703,0.9272,3233.0,3232.6,3.2078]
[1736889601002,3.72375689,3232.8,3232.7,41.10947]
[1736889601505,0.9272,3233.0,3232.7,40.8]
[1736889601803,0.78474,3233.0,3232.9,0.30945]
[1736889602196,0.4753,3233.0,3232.7,0.4967]
[1736889602398,0.30946,3232.9,3232.8,0.30946]
[1736889602602,0.78475,3233.0,3232.9,0.30945]
[1736889602903,0.78475,3233.0,3232.9,41.10945]
[1736889603098,0.78475,3233.0,3232.9,40.8]
[1736889612307,0.78475,3233.0,3232.9,41.10945]
[1736889612611,0.78475,3233.0,3232.9,40.8]
[1736889619120,4.24531454,3233.0,3232.9,40.8]
[1736889621514,3.46056454,3233.0,3232.9,41.10945]
[1736889621821,3.2078,3233.7,3233.6,0.30939]
[1736889622113,3.2078,3233.7,3233.2,3.2078]
[1736889622319,0.4684,3233.6,3233.2,3.2078]
[1736889622517,0.30942,3233.3,3233.2,3.2078]
[1736889622720,0.30942,3233.3,3233.2,3.51723]
[1736889622924,0.30942,3233.3,3233.2,44.31723]
[1736889624516,0.30942,3233.3,3233.2,40.8]
[1736889624822,0.30942,3233.3,3232.8,3.51726]
[1736889624823,0.30945,3232.9,3232.8,3.51726]
[1736889625017,0.30945,3232.9,3232.8,3.2078]
[1736889625326,0.30945,3232.9,3232.8,44.0078]
[1736889626324,1.27415,3232.9,3232.8,44.0078]
[1736889626723,4.49413028,3232.9,3232.8,44.0078]
[1736889627122,3.21998028,3232.9,3232.8,44.0078]
[1736889627324,0.30943,3233.2,3233.0,0.30944]
[1736889627627,0.30941,3233.4,3233.2,0.30942]
[1736889628022,3.31459871,3233.5,3233.2,0.30942]
[1736889628226,0.30942,3233.3,3232.9,1.4165]
[1736889628427,0.30942,3233.3,3233.1,0.30943]
[1736889628725,3.31459871,3233.5,3232.9,1.4165]
[1736889629024,0.77352,3233.4,3232.8,44.0078]
[1736889629326,0.30945,3232.9,3232.8,44.31726]
[1736889629924,0.30945,3232.9,3232.8,44.0078]
[1736889630519,0.30945,3232.9,3232.8,44.31726]
[1736889631820,0.30945,3232.9,3232.8,44.0078]
[1736889634331,0.964,3233.0,3232.8,44.0078]
[1736889634525,0.30944,3233.0,3232.9,0.30945]
[1736889635024,0.30944,3233.0,3232.8,44.0078]
[1736889635219,0.30944,3233.0,3232.9,0.30945]
[1736889635615,0.30944,3233.0,3232.8,44.0078]
[1736889635616,0.30945,3232.9,3232.8,44.31726]
[1736889636429,0.30945,3232.9,3232.8,44.0078]
[1736889638722,3.86004935,3232.9,3232.8,44.0078]
[1736889641930,3.86004935,3232.9,3232.8,3.2078]
[1736889642124,0.30952,3232.2,3232.1,0.9413]
[1736889642321,0.30952,3232.2,3232.1,42.05083]
[1736889642525,0.30952,3232.2,3232.1,41.7413]
[1736889644227,0.77376,3232.4,3232.0,3.2078]
[1736889644228,0.4757,3232.3,3232.0,3.2078]
[1736889644433,0.30953,3232.1,3232.0,3.2078]
[1736889646633,0.30953,3232.1,3232.0,44.0078]
[1736889648628,4.02223598,3232.3,3232.0,44.0078]
[1736889648932,0.4778,3232.5,3232.0,44.0078]
[1736889649133,0.30951,3232.4,3232.1,0.4627]
[1736889649323,0.30951,3232.3,3232.2,0.4482]
[1736889650133,0.30951,3232.3,3232.2,0.75772]
[1736889650829,0.30951,3232.3,3232.2,1.23102]
[1736889651237,0.30951,3232.4,3232.3,0.30951]
[1736889652737,0.7873,3232.5,3232.3,0.30951]
[1736889653038,0.7873,3232.5,3232.4,3.2078]
[1736889653335,1.54689,3233.8,3232.4,3.2078]
[1736889653536,0.30947,3232.8,3232.7,0.30947]
[1736889654234,0.30947,3232.8,3232.4,3.2078]
[1736889654428,0.30947,3232.8,3232.6,0.30948]
[1736889654733,0.30947,3232.7,3232.4,3.2078]
[1736889654930,1.261,3233.1,3232.6,0.30948]
[1736889655134,0.30947,3232.7,3232.6,0.30948]
[1736889655738,3.51971057,3233.0,3232.6,0.30948]
[1736889656039,0.30948,3232.6,3232.5,0.30949]
[1736889656227,0.30948,3232.7,3232.5,0.30949]
[1736889656537,0.30948,3232.7,3232.6,0.30948]
[1736889657037,0.30949,3232.5,3232.4,3.2078]
[1736889657630,0.77489,3232.5,3232.4,3.2078]
[1736889659036,0.77489,3232.5,3232.4,3.5173]
[1736889659436,0.77489,3232.5,3232.4,3.2078]
[1736889659837,0.77489,3232.5,3232.4,3.5173]
[1736889660135,0.77489,3232.5,3232.4,3.2078]
[1736889660841,0.77489,3232.5,3232.4,3.5173]
[1736889662442,0.77489,3232.5,3232.4,3.2078]
[1736889662639,0.77489,3232.5,3232.4,3.5173]
[1736889663541,0.4654,3232.5,3232.4,3.5173]
[1736889664238,0.9383,3232.6,3232.5,0.30949]
[1736889664439,0.30947,3232.8,3232.6,0.30948]
[1736889664636,0.30948,3232.7,3232.4,3.2078]
[1736889664836,4.76509429,3233.0,3232.4,3.2078]
[1736889665036,4.27169429,3233.0,3232.9,3.51725]
[1736889665236,0.30943,3233.2,3233.1,0.30943]
[1736889665639,0.30943,3233.2,3233.1,41.10943]
[1736889666545,0.30943,3233.2,3233.1,40.8]
[1736889668239,0.30943,3233.2,3233.1,41.10943]
[1736889669247,3.2078,3234.2,3233.2,0.30943]
[1736889669554,3.2078,3234.2,3233.8,0.30936]
[1736889669555,0.30936,3233.9,3233.8,0.30936]
[1736889669745,4.93782166,3234.0,3233.8,0.30936]
[1736889669945,3.36929657,3233.9,3233.5,3.2078]
[1736889670146,3.36929657,3233.9,3233.7,0.30937]
[1736889670350,3.05993657,3233.9,3233.5,3.2078]
[1736889670657,0.30937,3233.8,3233.5,3.2078]
[1736889670854,0.30937,3233.8,3233.6,0.30938]
[1736889671051,3.36929657,3233.9,3233.7,0.30937]
[1736889671251,0.30937,3233.8,3233.7,0.30937]
[1736889671653,0.30937,3233.8,3233.6,0.30938]
[1736889672758,3.05993657,3233.9,3233.5,3.2078]
[1736889673062,0.30939,3233.6,3233.5,3.2078]
[1736889673461,0.77351,3233.5,3233.1,3.2078]
[1736889673662,0.30945,3233.0,3232.8,1.58146]
[1736889673961,1.26324,3233.4,3232.8,42.38146]
[1736889673962,0.4754,3232.9,3232.8,42.38146]
[1736889674860,0.78485,3232.9,3232.8,42.072]
[1736889675556,0.78485,3232.9,3232.8,40.8]
[1736889675758,4.08991575,3232.9,3232.8,40.8]
[1736889679859,3.78046575,3232.9,3232.8,41.10946]
[1736889680066,0.4543,3233.0,3232.8,40.8]
[1736889680266,0.4543,3233.0,3232.9,0.30945]
[1736889680961,0.4625,3233.3,3232.9,40.8]
[1736889681164,0.4897,3233.4,3233.3,0.30942]
[1736889681362,0.4871,3233.6,3233.5,0.3094]
[1736889681758,0.4871,3233.6,3233.5,3.5172]
[1736889682364,0.77333,3234.2,3233.5,3.2078]
[1736889682564,0.30937,3233.8,3233.5,3.2078]
[1736889682763,0.30938,3233.7,3233.5,3.51719]
[1736889683070,0.30938,3233.7,3233.6,0.30939]
[1736889683567,0.9777,3234.0,3233.5,3.2078]
[1736889683773,0.30939,3233.6,3233.5,3.2078]
[1736889683961,0.30939,3233.6,3233.5,3.5172]
[1736889684265,0.30939,3233.6,3233.5,3.2078]
[1736889684769,0.30942,3233.3,3233.2,1.272]
[1736889689280,0.30942,3233.3,3233.2,4.4798]
[1736889689571,0.30942,3233.3,3233.2,3.2078]
[1736889692268,3.8170814,3233.3,3233.2,3.2078]
[1736889693874,3.5076614,3233.3,3232.9,40.8]
[1736889694175,3.2078,3233.2,3232.5,3.2078]
[1736889694368,3.2078,3233.2,3232.4,0.01153]
[1736889694570,0.30949,3232.6,3232.5,0.30949]
[1736889694874,0.30949,3232.6,3232.5,44.31729]
[1736889695171,0.30949,3232.6,3232.5,44.0078]
[1736889695973,0.4718,3232.9,3232.5,44.0078]
[1736889696278,0.3094,3233.5,3233.3,0.30942]
[1736889696464,0.30941,3233.4,3233.2,0.30942]
[1736889696672,0.3094,3233.5,3233.3,0.30941]
[1736889696974,3.31931304,3233.6,3233.5,0.30939]
[1736889697473,0.30938,3233.7,3233.5,0.4925]
[1736889697967,0.30939,3233.6,3233.5,0.4925]
[1736889701075,0.30939,3233.6,3233.5,3.7003]
[1736889703275,0.30939,3233.6,3233.5,0.4925]
[1736889703477,3.53923544,3233.8,3233.5,0.4925]
[1736889703676,0.30938,3233.7,3233.5,0.4925]
[1736889704080,0.30938,3233.7,3233.5,0.80189]
[1736889706780,3.53923544,3233.8,3233.4,44.4822]
[1736889707077,0.3094,3233.5,3233.4,44.0078]
[1736889707579,0.30939,3233.6,3233.4,44.0078]
[1736889708176,0.3094,3233.5,3233.4,44.0078]
[1736889708567,3.53923544,3233.8,3233.4,44.0078]
[1736889708776,0.30939,3233.6,3233.4,44.0078]
[1736889709378,3.53923544,3233.8,3233.4,44.0078]
[1736889709872,0.3094,3233.5,3233.4,44.0078]
[1736889712176,3.73073047,3233.5,3233.4,44.0078]
[1736889714880,3.73073047,3233.5,3232.8,1.271]